Cogmind - Beta 15 @@@ ROGUE MODE // 2025.07.25 @ 23:02:52 Player: phil_doe Result: Destroyed by H-61 Shepherd with Heavy Assault Cannon Performance ------------- Evolutions (3) 1500 Regions Visited (7) 1400 Robots Destroyed (55) 275 Value Destroyed (1682) 1682 Prototype IDs (1) 20 Alien Tech Used (0) 0 Bonus (599) 599 TOTAL SCORE: 5476 Bonus ------- Follower Combat Kills 99 Entered DSFs 500 Cogmind --------- Core Integrity 0/700 Matter 201/300 Energy 100/100 System Corruption 0% Temperature Cool (0) Movement Core (350) Ox6 Location -7/DSF Parts ------- > --- POWER (2) -------- (None) > --- PROPULSION (3) --- (None) > --- UTILITY (5) ------ Large Storage Unit Advanced Targeting Computer > --- WEAPON (3) ------- (None) > --- INVENTORY (15) --- Medium Matter Pod (100) Experimental Sensor Array Weapon Cycler Component Analysis Suite Peak State ------------ > --- POWER ------------ Light Nuclear Core > --- PROPULSION ------- Improved Aluminum Leg Flexi-carbon Leg Flexi-carbon Leg > --- UTILITY ---------- Large Storage Unit Visual Processing Unit Seismic Detector Advanced Targeting Computer > --- WEAPON ----------- Particle Gun Plasma Cannon > --- INVENTORY -------- Improved Heat Sink Medium Matter Pod Experimental Sensor Array Weapon Cycler Component Analysis Suite Heavy Rocket Launcher [Rating: 30] Favorites ----------- Power Light Ion Engine Engine Light Ion Engine Power Core Light Nuclear Core Propulsion Aluminum Leg Treads Light Treads Leg Aluminum Leg Wheel Wheel Utility Visual Processing Unit Device Seismic Detector Storage Small Storage Unit Processor Visual Processing Unit Protection Layered Light Armor Plating Weapon Particle Gun Energy Gun Particle Gun Energy Cannon Particle Cannon Ballistic Gun Gauss Rifle Launcher Mini Grenade Launcher Special Weapon Mining Laser Build | -11 -10 -10 -9 -9 -8 -7 -7 ------- Run | Yrd Mat Min Mat Min Mat Fac DSF Slots Evolved 6 | . . . 2 . 2 2 . Power 1 | . . . 1 . . . . Propulsion 1 | . . . 1 . . . . Utility 3 | . . . . . 2 1 . Weapon 1 | . . . . . . 1 . Parts Attached 54 | 6 3 4 7 7 22 . 5 Power 9 | 2 . 1 1 2 3 . . Engine 7 | 2 . 1 1 2 1 . . Core 2 | . . . . . 2 . . Reactor . | . . . . . . . . Propulsion 15 | 2 . 1 2 3 5 . 2 Treads 1 | . . . 1 . . . . Leg 11 | . . 1 1 2 5 . 2 Wheel 3 | 2 . . . 1 . . . Hover . | . . . . . . . . Flight . | . . . . . . . . Utility 13 | . 2 . 1 . 8 . 2 Device 4 | . . . . . 3 . 1 Storage 4 | . 1 . 1 . 2 . . Processor 2 | . 1 . . . . . 1 Hackware . | . . . . . . . . Protection 3 | . . . . . 3 . . Artifact . | . . . . . . . . Weapon 17 | 2 1 2 3 2 6 . 1 Energy Gun 6 | 1 . 1 2 . 2 . . Energy Cannon 3 | . . . . 1 2 . . Ballistic Gun 4 | 1 . . . . 2 . 1 Ballistic Cannon . | . . . . . . . . Launcher 3 | . . 1 1 1 . . . Special Weapon 1 | . 1 . . . . . . Impact Weapon . | . . . . . . . . Slashing Weapon . | . . . . . . . . Piercing Weapon . | . . . . . . . . Special Melee Weapon . | . . . . . . . . Unidentified Prototypes . | . . . . . . . . Parts Lost 36 | . 6 1 3 4 8 . 14 Power 8 | . 1 . 2 1 3 . 1 Propulsion 11 | . 2 . 1 1 3 . 4 Utility 5 | . . . . . 1 . 4 Weapon 12 | . 3 1 . 2 1 . 5 Highest Loss Streak 13 | . 6 1 1 3 3 . 13 To Critical Strikes . | . . . . . . . . Average Backups 5 | 1 2 4 5 6 7 6 5 Power . | . 1 . . 1 . . . Propulsion . | . . . . . . . . Utility 3 | . 1 3 3 5 3 4 4 Weapon 1 | . . . . . 2 2 1 Tool/Special . | . . . . . . . . Unused Backups 6 | . 1 1 1 1 . . 2 Power 1 | . . 1 . . . . . Propulsion . | . . . . . . . . Utility 4 | . . . 1 1 . . 2 Weapon 1 | . 1 . . . . . . Tool/Special . | . . . . . . . . Average Slot Usage (%) 68 | . 77 60 62 55 86 69 58 Engine 11 | . 13 13 11 18 7 . . Core 1 | . . . . . 4 7 3 Leg 10 | . . 12 7 1 21 15 12 Wheel 1 | . 26 . . . . . . Device 5 | . . . . . 13 15 10 Storage 7 | . 2 . 8 11 9 7 7 Processor 10 | . 7 14 11 11 9 7 11 Energy Gun 8 | . 13 12 11 10 4 7 5 Energy Cannon 3 | . . . . . 8 7 4 Ballistic Gun 2 | . 13 . . . 4 . . Launcher 3 | . . 7 9 1 . . . Peak Build Rating 30 | 5 8 7 10 23 29 24 30 Average Rating 13 | 3 6 6 8 8 23 20 20 On Entrance 10 | . 5 2 6 10 21 17 20 Naked Turns . | . . . . . . . . Heaviest Build 37 | 8 28 9 12 29 37 34 36 Greatest Support 53 | 20 20 10 20 30 43 33 53 Greatest Overweight (x) 8 | . 1 2 1 4 1 1 8 Average Overweight (x) . | . . . . 3 . 1 . Largest Inventory Capacity 15 | 5 15 5 8 8 15 15 15 Average Capacity 8 | 5 6 5 7 8 9 15 15 Most Carried 8 | 3 5 5 8 8 8 7 7 Average Carried 5 | 1 2 4 5 6 7 6 5 Final Capacity 15 | 5 5 5 8 8 15 15 15 Final Carried 8 | 3 4 5 8 8 7 7 4 Class Distribution -------------------- 69% | Scavenger-Mutant 30% | Mutant Dominant Class ---------------- Mutant | -10/Materials Mutant | -10/Mines Scavenger-Mutant | -9/Materials Scavenger-Mutant | -9/Mines Scavenger-Mutant | -8/Materials Scavenger-Mutant | -7/Factory Scavenger-Mutant | -7/DSF Resources | -11 -10 -10 -9 -9 -8 -7 -7 ----------- Run | Yrd Mat Min Mat Min Mat Fac DSF Matter Collected 1430 | 272 53 99 199 97 668 . 42 Remotely . | . . . . . . . . Salvage Created 1791 | 44 70 82 316 39 1019 . 221 Parts 99 | 4 5 6 19 6 50 . 9 Haulers Intercepted 1 | . . . . . 1 . . Recyclers Shooed 1 | . 1 . . . . . . Parts Field Recycled . | . . . . . . . . Retrieved Matter . | . . . . . . . . Parts Self-Destructed . | . . . . . . . . Prevented . | . . . . . . . . Kills | -11 -10 -10 -9 -9 -8 -7 -7 ------- Run | Yrd Mat Min Mat Min Mat Fac DSF Combat Hostiles Destroyed 40 | 1 1 5 5 4 18 . 6 Guns 17 | 1 1 1 3 2 7 . 2 Cannons 6 | . . . . . 5 . 1 AOE 17 | . . 4 2 2 6 . 3 Classes Destroyed 9 | 1 1 1 4 . 1 . 1 Worker 5 | . . . 1 . 4 . . Builder 2 | . . . 1 . 1 . . Hauler 1 | . . . . . 1 . . Recycler 2 | . . . 2 . . . . Watcher 4 | . 2 . 1 . 1 . . Swarmer 9 | . . 3 . 4 2 . . Grunt 24 | 1 1 2 2 . 15 . 3 Sentry 6 | . . . 3 . 2 . 1 Specialist 2 | . . . . . . . 2 Best Kill Streak 7 | 1 1 3 7 3 5 . 5 Combat Bots Only 5 | 1 1 3 1 3 3 . 5 Max Kills in Single Turn 3 | 1 1 2 2 2 3 . 2 Gunslinging . | . . . . . . . . Exploded 2 | . . 2 1 1 2 . 1 Melee . | . . . . . . . . Uniques/NPCs Destroyed . | . . . . . . . . Combat | -11 -10 -10 -9 -9 -8 -7 -7 -------- Run | Yrd Mat Min Mat Min Mat Fac DSF Hostile Shots Fired 462 | 5 89 10 59 27 148 . 124 Missed 144 | 1 27 5 22 6 40 . 43 Hits 318 | 4 62 5 37 21 108 . 81 Projectile 318 | 4 62 5 37 21 108 . 81 Critical Strikes 11 | . 1 . 1 . 5 . 4 Damage Taken 4822 | 44 557 92 586 205 1723 . 1615 Core 1527 | 10 202 4 209 61 293 . 748 Absorbed by Shields . | . . . . . . . . Regen/Repaired (Parts) 57 | . . . . . 57 . . Core Remaining (%) 46 | 96 . 13 . 32 46 . . Volleys Fired 157 | 4 18 6 33 13 69 . 14 Largest 2 | 2 2 2 2 2 2 . 2 Hottest 145 | 60 100 95 95 86 143 . 145 Shots Fired 262 | 8 32 10 45 15 129 . 23 Gun 176 | 8 31 6 33 13 75 . 10 Cannon 53 | . . . . . 47 . 6 Launcher 32 | . . 4 12 2 7 . 7 Special 1 | . 1 . . . . . . Kinetic 66 | 4 17 . . . 40 . 5 Thermal 143 | 4 15 6 33 13 61 . 11 Explosive 32 | . . 4 12 2 7 . 7 Electromagnetic 21 | . . . . . 21 . . Robot Hit Streak 14 | 2 4 2 7 2 5 . 14 Robot Miss Streak 5 | 1 5 1 3 4 4 . 2 Penetration Max 1 | . . . . . 1 . . Secondary Targets . | . . . . . . . . Shots Hit Robots 122 | 5 5 6 24 5 60 . 17 Core Hits 97 | 2 6 7 20 5 41 . 16 Critical Kills . | . . . . . . . . Critical Parts Destroyed 1 | 1 . . . . . . . Critical Strikes 4 | 1 . 1 1 1 . . . Burn 3 | . . 1 1 1 . . . Destroy 1 | 1 . . . . . . . Melee Attacks . | . . . . . . . . Impact . | . . . . . . . . Slashing . | . . . . . . . . Piercing . | . . . . . . . . Sneak Attacks . | . . . . . . . . Combat Hostiles . | . . . . . . . . Follow-up Attacks . | . . . . . . . . Damage Inflicted 4408 | 55 121 292 893 195 1879 . 973 Guns 1361 | 55 97 42 334 61 586 . 186 Cannons 725 | . . . . . 579 . 146 Explosions 2272 | . . 250 559 134 688 . 641 Melee . | . . . . . . . . Ramming 26 | . . . . . 26 . . Kinetic 580 | 23 63 . . . 374 . 120 Thermal 1499 | 32 58 42 435 61 659 . 212 Explosive 2171 | . . 250 458 134 688 . 641 Electromagnetic 132 | . . . . . 132 . . Impact . | . . . . . . . . Slashing . | . . . . . . . . Piercing . | . . . . . . . . Highest Corruption 2 | . 2 2 . . . . . Average Corruption 2 | . 2 2 . . . . . Corruption Purged . | . . . . . . . . Corruption Blocked . | . . . . . . . . Effects 9 | . 1 8 . . . . . Message Errors 3 | . . 3 . . . . . Matter Fused 3 | . . 3 . . . . . Heat Flow Errors 1 | . . 1 . . . . . Data Loss (minor) 1 | . 1 . . . . . . Data Loss (major) 1 | . . 1 . . . . . Overload Shots . | . . . . . . . . Overflow Damage 91 | . . 2 55 . . . 34 Projectiles . | . . . . . . . . Explosions 91 | . . 2 55 . . . 34 Melee . | . . . . . . . . Knockbacks 1 | . . . . . 1 . . Impact 1 | . . . . . 1 . . Kinetic . | . . . . . . . . Secondary . | . . . . . . . . Self-Inflicted Damage 124 | . . 35 70 . 19 . . Shots 6 | . . 2 2 . 2 . . Rammed . | . . . . . . . . Targets Rammed 6 | . . . . . 6 . . Kicked 6 | . . . . . 6 . . Crushed . | . . . . . . . . Highest Temperature 355 | 18 35 160 132 65 355 . 2 Average Temperature 94 | 12 17 62 49 26 128 . 2 Received Heat Transfer 1671 | 24 108 18 177 . 972 . 372 Effects 9 | . . . . . 9 . . Shutdowns 2 | . . . . . 2 . . Energy Bleed 1 | . . . . . 1 . . Interference 6 | . . . . . 6 . . Siege Activations . | . . . . . . . . Martial Activations . | . . . . . . . . Shielding Activations . | . . . . . . . . Robots Disrupted . | . . . . . . . . Combat Hostiles . | . . . . . . . . Robots Corrupted . | . . . . . . . . Combat Hostiles . | . . . . . . . . Parts Fried . | . . . . . . . . Impact Corruptions . | . . . . . . . . Robots Melted . | . . . . . . . . Combat Hostiles . | . . . . . . . . Parts Melted 5 | . . . 1 1 2 . 1 Heat Transferred 3244 | 75 125 185 988 222 1227 . 422 Parts Sabotaged . | . . . . . . . . Parts Stolen . | . . . . . . . . Parts Stripped . | . . . . . . . . Power Chain Reactions . | . . . . . . . . Alert | -11 -10 -10 -9 -9 -8 -7 -7 ------- Run | Yrd Mat Min Mat Min Mat Fac DSF Maximum Alert Level 1 | . . . . . 1 . . Low Security (%) 89 | 100 100 100 100 100 63 100 100 Level 1 10 | . . . . . 36 . . Level 2 . | . . . . . . . . Level 3 . | . . . . . . . . Level 4 . | . . . . . . . . Level 5 . | . . . . . . . . High Security . | . . . . . . . . Max Security . | . . . . . . . . Peak Influence 250 | 10 20 72 197 82 250 88 137 Initial 88 | . . . . 10 . 88 3 Average 60 | 1 2 21 74 7 147 27 30 Influence Increases 1553 | 20 34 149 309 135 729 5 172 Destroy 0b10 Robot/C 860 | 20 20 100 100 100 400 . 120 Destroy 0b10 Robot/NC 75 | . 10 . 25 . 40 . . Destroy Leader 212 | . 4 20 32 20 116 . 20 Allied During Kill 14 | . . . . 3 11 . . Successful Hack 14 | . . . . . 9 5 . Disable Machine 90 | . . . 60 . 30 . . Destroy Structure 213 | . . 29 77 12 63 . 32 Partial Spotted 15 | . . . 15 . . . . Lose Combat Pursuer 60 | . . . . . 60 . . Influence Decreases 1441 | 20 34 149 282 162 534 195 65 Entered New Map 126 | . . . . 17 . 107 2 Time Decay 1075 | 20 27 139 252 115 434 88 . Lost Part 220 | . 7 10 30 30 80 . 63 Lost Ally 20 | . . . . . 20 . . Squads Dispatched 11 | . 1 . . 1 7 . 2 Investigation 3 | . 1 . . 1 1 . . Extermination . | . . . . . . . . Reinforcement 5 | . . . . . 3 . 2 Assault . | . . . . . . . . Garrison 3 | . . . . . 3 . . Intercept . | . . . . . . . . Searches Triggered . | . . . . . . . . Construction Impeded 1 | . . . . . 1 . . Haulers Reinforced . | . . . . . . . . Active Scanning Responses . | . . . . . . . . Cargo Convoy Interrupts . | . . . . . . . . Stealth | -11 -10 -10 -9 -9 -8 -7 -7 --------- Run | Yrd Mat Min Mat Min Mat Fac DSF Distress Signals 2 | . . . . . 2 . . Communications Jammed . | . . . . . . . . Distress Signals . | . . . . . . . . Times Spotted 77 | 1 12 7 7 7 35 . 8 Peak Tracking Total 12 | 1 10 3 2 12 4 . 7 Tactical Retreats 4 | . . . . . 4 . . Traps | -11 -10 -10 -9 -9 -8 -7 -7 ------- Run | Yrd Mat Min Mat Min Mat Fac DSF Traps Triggered 6 | . 2 . . . 3 . 1 Indirectly . | . . . . . . . . Trap Hack Attempts . | . . . . . . . . Triggered . | . . . . . . . . Disarmed . | . . . . . . . . Reprogrammed . | . . . . . . . . Reused . | . . . . . . . . Traps Extracted . | . . . . . . . . Installed . | . . . . . . . . Triggered . | . . . . . . . . Machines | -11 -10 -10 -9 -9 -8 -7 -7 ---------- Run | Yrd Mat Min Mat Min Mat Fac DSF Machines Disabled 6 | . . . 4 . 2 . . Max in Single Turn 2 | . . . 2 . 1 . . Machines Repaired . | . . . . . . . . Machines Dismantled . | . . . . . . . . Machines Sabotaged . | . . . . . . . . Overloaded Fab Kills . | . . . . . . . . Hacking | -11 -10 -10 -9 -9 -8 -7 -7 --------- Run | Yrd Mat Min Mat Min Mat Fac DSF Machines Accessed 7 | . 1 . 1 1 2 2 . Terminals 3 | . . . 1 . . 2 . Fabricators . | . . . . . . . . Repair Stations 1 | . . . . . 1 . . Recycling Units 1 | . 1 . . . . . . Scanalyzers . | . . . . . . . . Garrison Access 1 | . . . . . 1 . . Total Hacks 11 | . 2 . 1 1 4 3 . Successful 8 | . 2 . . 1 3 2 . Failed 3 | . . . 1 . 1 1 . Catastrophic 1 | . . . 1 . . . . Database Lockouts . | . . . . . . . . Manual 1 | . . . . . 1 . . Terminals 4 | . . . 1 . . 3 . Fabricators . | . . . . . . . . Repair Stations 3 | . . . . . 3 . . Recycling Units 2 | . 2 . . . . . . Scanalyzers . | . . . . . . . . Garrison Access 1 | . . . . . 1 . . Terminal Hacks 3 | . . . . 1 . 2 . Open Door 1 | . . . . 1 . . . Open DSF 1 | . . . . . . 1 . Alert Level 1 | . . . . . . 1 . Fabricator Hacks . | . . . . . . . . Repair Station Hacks 2 | . . . . . 2 . . Scan Component 1 | . . . . . 1 . . Repair 1 | . . . . . 1 . . Recycling Unit Hacks 2 | . 2 . . . . . . Recycle Component 1 | . 1 . . . . . . Report Inventory 1 | . 1 . . . . . . Scanalyzer . | . . . . . . . . Garrison Access Hacks 1 | . . . . . 1 . . Unlock Access 1 | . . . . . 1 . . Unauthorized Hacks . | . . . . . . . . Terminals . | . . . . . . . . Fabricators . | . . . . . . . . Repair Stations . | . . . . . . . . Recycling Units . | . . . . . . . . Scanalyzers . | . . . . . . . . Garrison Access . | . . . . . . . . Data Cores Recovered . | . . . . . . . . Used . | . . . . . . . . Hacking Detections 5 | . 1 . 1 . 1 2 . Full Trace Events 1 | . . . . . 1 . . Feedback Events . | . . . . . . . . Feedback Blocked . | . . . . . . . . Robot Schematics Acquired . | . . . . . . . . Robots Built . | . . . . . . . . Authchips . | . . . . . . . . Time . | . . . . . . . . Total Robot Build Rating . | . . . . . . . . Part Schematics Acquired . | . . . . . . . . Parts Built . | . . . . . . . . Authchips . | . . . . . . . . Time . | . . . . . . . . Total Part Build Rating . | . . . . . . . . Parts Repaired 1 | . . . . . 1 . . Time 38 | . . . . . 38 . . Parts Recycled 1 | . 1 . . . . . . Recycled Matter . | . . . . . . . . Retrieved Matter . | . . . . . . . . Retrieved Components . | . . . . . . . . Parts Scanalyzed . | . . . . . . . . Part Schematics Acquired . | . . . . . . . . Parts Damaged . | . . . . . . . . Bothacking | -11 -10 -10 -9 -9 -8 -7 -7 ------------ Run | Yrd Mat Min Mat Min Mat Fac DSF Used RIF Installer . | . . . . . . . . Robots Hacked . | . . . . . . . . Non-combat . | . . . . . . . . Combat . | . . . . . . . . Robot Hacks Applied . | . . . . . . . . Relay Couplers Released . | . . . . . . . . Fabnet Peak Effective % . | . . . . . . . . Robots Rewired . | . . . . . . . . Allies Hacked . | . . . . . . . . Hacks Repelled . | . . . . . . . . Allies | -11 -10 -10 -9 -9 -8 -7 -7 -------- Run | Yrd Mat Min Mat Min Mat Fac DSF Total Allies 3 | . . . . 3 . . . Largest Group 3 | . . . . 3 2 . . Highest-Rated Group 40 | . . . . 40 24 . . Highest-Rated Ally 16 | . . . . 16 16 . . Total Orders . | . . . . . . . . Ally Attacks 39 | . . . . 15 24 . . Total Damage 365 | . . . . 135 230 . . Kills 5 | . . . . 2 3 . . Allies Corrupted . | . . . . . . . . Allies Melted . | . . . . . . . . Intel | -11 -10 -10 -9 -9 -8 -7 -7 ------- Run | Yrd Mat Min Mat Min Mat Fac DSF Active Infowar (turns) 3902 | . 152 460 669 1020 1179 308 114 Optics 3902 | . 152 460 669 1020 1179 308 114 Seismic 1385 | . . . . . 976 308 101 Robot Analysis Total . | . . . . . . . . Derelict Logs Recovered 3 | . . 2 . 1 . . . Drone Launches . | . . . . . . . . Drone Recoveries . | . . . . . . . . Exploration | -11 -10 -10 -9 -9 -8 -7 -7 ------------- Run | Yrd Mat Min Mat Min Mat Fac DSF Turns Passed 4212 | 169 272 460 669 1020 1179 308 135 Spaces Moved 2443 | 200 257 376 345 451 605 157 52 Core 500 | 68 5 55 . 368 . . 4 Treads 131 | . . . 117 14 . . . Legs 1403 | . . 321 228 44 605 157 48 Wheels 409 | 132 252 . . 25 . . . Hover . | . . . . . . . . Flight . | . . . . . . . . Fastest Speed 50 | 50 50 50 120 100 120 195 120 Average Speed 147 | 69 81 110 160 216 150 195 168 Slowest Speed 450 | 80 100 150 190 250 200 195 450 Overloaded Moves . | . . . . . . . . Propulsion Burnouts . | . . . . . . . . Robots Hopped . | . . . . . . . . Potential Cave-ins 1 | . . . 1 . . . . Cave-ins Triggered . | . . . . . . . . Exploration Rate (%) 33 | 7 32 66 28 63 34 3 35 Regions Visited 7 Branch Regions 2 Pre-discovered Areas . | . . . . . . . . Known Exits Taken 2 | . . . 1 . . 1 . Unknown Exits Taken 5 | 1 1 1 . 1 1 . . Scrap Searched 1 | . . . . 1 . . . Spaces Dug 17 | . . . . . 17 . . Terrain Destroyed 298 | . . 31 98 16 98 . 55 Melee . | . . . . . . . . Projectile 7 | . . . . . 7 . . AOE 291 | . . 31 98 16 91 . 55 Terrain Rammed . | . . . . . . . . Walls Destroyed . | . . . . . . . . Machines Disabled . | . . . . . . . . Actions | -11 -10 -10 -9 -9 -8 -7 -7 --------- Run | Yrd Mat Min Mat Min Mat Fac DSF Total 2789 | 220 285 408 417 480 742 160 77 Wait 40 | 3 1 18 14 2 . . 2 Move 2436 | 199 256 375 344 450 604 156 52 Hop . | . . . . . . . . Pick Up 43 | 8 5 3 8 4 12 1 2 Fast Attach 27 | . . 3 4 4 14 . 2 Attach 31 | 5 3 1 6 4 5 2 5 Detach 8 | . 1 . 4 . 2 1 . Swap 18 | 1 . 1 . . 16 . . Drop 23 | . 1 1 4 3 14 . . Fire 157 | 4 18 6 33 13 69 . 14 Melee . | . . . . . . . . Ram . | . . . . . . . . Kick 6 | . . . . . 6 . . Crush . | . . . . . . . . Escape Stasis . | . . . . . . . . Rewire . | . . . . . . . . Trap . | . . . . . . . . Miscellaneous . | . . . . . . . . Route ------- -11/Scrapyard -10/Materials (discovered 2 exits: *Mat / [*Min]) -10/Mines (discovered 3 exits: *Mat x2 / [*Sub]) -9/Materials (discovered 2 exits: *Min x2) -9/Mines -8/Materials (discovered 2 exits: *Fac / Gar) -7/Factory (discovered 2 exits: [*Sto] / DSF) -7/DSF (discovered 1 exit: [*Fac]) History --------- Turn | Location | Event 2 | -11/Scrapyard | Met Revision 17 127 | -11/Scrapyard | Discovered new exit (range 8) 170 | -11/Scrapyard | Entered Materials 184 | -10/Materials | Discovered new exit (range 15) 240 | -10/Materials | Discovered new exit (range 13) 311 | -10/Materials | Build established: Mutant 436 | -10/Materials | Core integrity fell below 50% 442 | -10/Materials | Core integrity fell below 20% 442 | -10/Materials | Entered Mines 452 | -10/Mines | Learned 2 Materials zone layouts 471 | -10/Mines | Lost 6 parts (1p2n3w) 471 | -10/Mines | Discovered new exit (range 13) 474 | -10/Mines | YI-UF0 nonchalantly dropped a Grenade Launcher on the ground 854 | -10/Mines | Discovered new exit (range 6) 868 | -10/Mines | Learned Materials trap positions 878 | -10/Mines | Discovered new exit (range 8) 902 | -10/Mines | Entered Materials 902 | -9/Materials | Evolved 2 slots: Power x1, Propulsion x1 903 | -9/Materials | Identified exit to Mines 904 | -9/Materials | Loaded intel: 16 trap records 1037 | -9/Materials | Build established: Scavenger-Mutant 1290 | -9/Materials | Discovered exit to Mines (range 5) 1448 | -9/Materials | Core integrity fell below 50% 1571 | -9/Materials | Entered Mines 1653 | -9/Mines | Lost 3 parts (1n2w) 1824 | -9/Mines | Assisted by bots powering up and referring to "LRC-V3" 2308 | -9/Mines | Found a damaged Exp. Sensor Array with a note attached 2313 | -9/Mines | Found Prototype Device 2348 | -9/Mines | Assembled infested the area 2414 | -9/Mines | Learned Materials security intel 2460 | -9/Mines | Discovered new exit (range 12) 2485 | -9/Mines | Met a Derelict shopkeep closing up shop 2591 | -9/Mines | Entered Materials 2591 | -8/Materials | Accompanied by 2 allies 2591 | -8/Materials | Evolved 2 slots: Utility x2 2889 | -8/Materials | Lost 3 allies 3005 | -8/Materials | Lost 3 parts (2n1w) 3194 | -8/Materials | Identified Exp. Sensor Array 3551 | -8/Materials | Garrison activated, responded to threat 3639 | -8/Materials | Repaired Hvy. Particle Cannon 3673 | -8/Materials | Core integrity fell below 50% 3675 | -8/Materials | Discovered new exit (range 18) 3714 | -8/Materials | Identified exit to Garrison 3770 | -8/Materials | Entered Factory 3770 | -7/Factory | Evolved 2 slots: Utility x1, Weapon x1 3817 | -7/Factory | Discovered new exit (range 16) 4076 | -7/Factory | Identified exit to DSF 4078 | -7/Factory | Entered DSF 4099 | -7/DSF | Additional patrols routed to DSF 4128 | -7/DSF | Discovered new exit (range 17) 4177 | -7/DSF | Core integrity fell below 50% 4203 | -7/DSF | Core integrity fell below 20% 4213 | -7/DSF | Destroyed by H-61 Shepherd with Heavy Assault Cannon Last Messages --------------- The unstable cave ceiling collapses. X-62 Marksman destroyed. Destroyed Imp. Heat Sink. Penetrated by Slug. Knocked back. Flexi-carbon Leg destroyed. G-47 Trooper destroyed. Hvy. Machine Gun destroyed. Visual Processing Unit destroyed. Critical hit (Blast). Penetrated by Slug. Hvy. Rocket Launcher destroyed. Penetrated by Slug. The unstable cave ceiling collapses. Penetrated by Slug. Acquired 5 matter. Acquired 4 matter. Penetrated by Slug. [Achievement: First Step to Greatness] [Achievement: 5k Club] Map ----- +----------------------------------------------------+ | | | | | | | | | | | | | | | | | | | | | | | | | | | | | | | ????????????????????????????????????? | | ????????????????????????????????????? | | ????????????????????????????????????? | | ????????????????????????##??????????? | | ????????????????????????#"??????????? | | ????????????????????????#"#?????????? | | ???????????????????????##"####??????? | | ??????????[????##??###?#"""""#??????? | | ???????? [[[!!# #!!##%%%""#??????? | | ???????? %%""##"#???? | | ???????? x @%%%%""#???? | | ?????????# ###!!!#!!## ""####???? | | ???????????????????#???##% ###??????? | | ??????????????????????###!!##???????? | | ??????????????????????# !#???????? | | ??????????????????????# ???????? | | ?????????????????????? ??????? | | ?????????????????????? #??????? | | ????????????????????? ?????? | | ???????????????????? H ????? | | ???????????????????# #???? | | ??????????????##!??#! #???? | | ????????# #"!!!#!! #???? | | ????? == #???? | | ????? ==####???? | | ????? ==#??????? | | ????????# ##!!!#!!! //#??????? | | ????????##?????#!!?#!!!##% //#??????? | | ???????????????#???#+#### ###??????? | | ???????????????????# ???[ [????????? | | ???????????????????# ???[ [#???????? | | ???????????????????!????[ [#???????? | | ???????????????????!???## ##???????? | | ?????????????????? ????[ ????????? | | ??????????????????#?????[ ????????? | +----------------------------------------------------+ Best States ------------- Heat Dissipation 48 Energy Generation 23 Energy Capacity 290 Matter Stores 300 Matter Capacity 300 Sight Range 18 Terrain Scan Density 10 Armor Coverage 150 Resistance: EM 15 Evasion (%) 55 Targeting Accuracy 8 Recoil Reduction 1 Item Schematics ----------------- None Robot Schematics ------------------ None Fabricated ------------ Nothing Repaired ---------- Hvy. Particle Cannon | 56% | -8/Materials Alien Tech Used ----------------- None Achievements -------------- 5k Club Crack Shot First Step to Greatness I Survived The Infestation Loot Pinata Made in Tau Ceti IV Part-time Mechanic Please Form A Line Remodeling Slippery One Storm Trooper Troublemaker Uninvited Guest Challenges ------------ None Game ------ Seed PhasingDisintegrationLink Manual? 0 Play Time 01:50:14 Cumulative 1.8 hours Start 2025.07.25 @ 19:42:06 End 2025.07.25 @ 23:02:52 Sessions 5 Manual Loads 0 Difficulty Rogue Special Mode None Game No. 1 Rogue 1 Adventurer 0 Explorer 0 Win Type - Total 0 Types 0/0/0/0/0/0/0/0/0/0 Lore% 0 Gallery% 3 Achievement% 5 Wizard Run 0 Options --------- Layout 0 ASCII 0 Keyboard 1 Movement Arrows Keybinds 0 Fullscreen 2 Font 24/Smallcaps Map View 76x50 Zoom Use 0% Tactical HUD 0 Map Filters NONE Filters NONE Steam 1 RUN: 4e3db034-3ebb-4f0f-83d5-1aa84105b6ea